bitfinex/quotes_SOLUSD_20240713
["timestamp","ask_amount","ask_price","bid_price","bid_amount"]
[1720844262393,20.0,139.18,139.14,11.63]
[1720844262776,31.63,139.18,139.13,32.5056]
[1720844264176,20.0,139.18,139.13,32.5056]
[1720844264500,20.0,139.17,139.13,32.5056]
[1720844265299,20.0,139.17,139.14,5.0308]
[1720844265880,34.60733504,139.19,139.14,5.0308]
[1720844266079,31.63,139.19,139.14,5.0308]
[1720844269199,20.0,139.19,139.15,5.0305]
[1720844269786,20.0,139.19,139.14,16.6607]
[1720844270084,31.63,139.19,139.14,5.0307]
[1720844272089,20.0,139.19,139.14,5.0307]
[1720844272398,11.63,139.19,139.14,5.0307]
[1720844272580,20.0,139.18,139.14,5.0307]
[1720844273802,31.63,139.18,139.13,15.8445]
[1720844274005,11.63,139.17,139.13,15.8445]
[1720844274184,20.0,139.16,139.13,15.8445]
[1720844274380,20.0,139.16,139.1,15.4731]
[1720844274698,11.63,139.14,139.09,16.6626]
[1720844274884,31.63,139.13,139.08,11.1895]
[1720844275195,31.63,139.13,139.08,16.6629]
[1720844275575,31.63,139.13,139.09,5.0326]
[1720844277202,36.6613,139.13,139.09,5.0326]
[1720844279795,31.63,139.13,139.1,5.0322]
[1720844280180,20.0,139.13,139.1,5.0322]
[1720844281107,20.0,139.13,139.08,5.0329]
[1720844281108,11.63,139.12,139.08,5.0329]
[1720844281287,20.0,139.14,139.07,1.43803526]
[1720844281489,16.6614,139.13,139.09,5.0324]
[1720844281705,20.0,139.12,139.09,5.0324]
[1720844282214,31.63,139.12,139.09,5.0324]
[1720844282501,20.0,139.12,139.09,5.0324]
[1720844282705,31.63,139.12,139.09,5.0324]
[1720844282907,20.0,139.12,139.09,5.0324]
[1720844283212,36.6616,139.12,139.08,5.0329]
[1720844286415,16.6621,139.11,139.07,5.0333]
[1720844286592,20.0,139.1,139.07,5.0333]
[1720844288311,20.0,139.1,139.08,5.033]
[1720844289009,36.6623,139.1,139.06,5.0335]
[1720844289214,36.6623,139.1,139.04,17.7866]
[1720844289788,36.6623,139.1,139.04,6.1566]
[1720844289989,36.6623,139.1,139.05,11.63]
[1720844290214,36.6623,139.1,139.07,5.0334]
[1720844291215,16.6627,139.09,139.03,15.3227]
[1720844291402,20.0,139.08,139.05,5.0339]
[1720844292417,20.0,139.08,139.06,5.0337]
[1720844292900,16.6625,139.1,139.06,5.0337]
[1720844293101,20.0,139.09,139.06,5.0337]
[1720844303414,20.0,139.09,139.07,5.0334]
[1720844308641,20.0,139.09,139.06,5.0337]
[1720844310263,20.0,139.09,139.06,16.6637]
[1720844312254,20.0,139.09,139.07,5.0333]
[1720844312451,25.0324,139.1,139.06,5.0336]
[1720844312866,36.6624,139.1,139.06,5.0336]
[1720844316549,5.0327,139.09,139.06,5.0336]
[1720844316749,20.0,139.08,139.06,5.0336]
[1720844319348,20.0,139.08,139.03,15.3227]
[1720844319349,20.0,139.08,139.05,5.034]
[1720844323650,20.0,139.08,139.06,5.0337]
[1720844323852,20.0,139.09,139.06,5.0337]
[1720844325255,25.0327,139.09,139.06,5.0337]
[1720844326078,20.0,139.09,139.06,5.0337]
[1720844327073,25.0327,139.09,139.06,5.0337]
[1720844328370,25.0327,139.09,139.05,5.0341]
[1720844329156,25.0327,139.09,139.05,16.6641]
[1720844331456,25.0327,139.09,139.05,5.0341]
[1720844332358,5.0332,139.08,139.04,16.6644]
[1720844332561,25.0335,139.07,139.03,31.9872]
[1720844332765,31.63,139.09,139.03,26.9527]
[1720844333687,5.0332,139.08,139.04,5.0342]
[1720844333871,20.0,139.07,139.04,5.0342]
[1720844334460,20.0,139.07,139.05,5.034]
[1720844334677,20.0,139.08,139.05,5.034]
[1720844339471,25.0331,139.08,139.05,5.034]
[1720844344994,25.0331,139.08,139.04,16.6643]
[1720844347599,25.0331,139.08,139.04,5.0343]
[1720844349111,5.0335,139.07,139.03,15.3227]
[1720844349296,20.0,139.06,139.02,5.0351]
[1720844349501,11.63,139.03,138.99,15.6744]
[1720844349694,36.6653,139.02,138.99,15.6744]
[1720844349892,36.6653,139.02,138.98,5.0365]
[1720844349893,16.6653,139.02,138.98,5.0365]
[1720844350093,20.0,139.01,138.98,5.0365]
[1720844353413,20.0,139.01,138.99,5.0363]
[1720844353611,20.0,139.02,138.99,5.0363]
[1720844354929,25.0352,139.02,138.98,5.0365]
[1720844355710,5.0356,139.01,138.97,5.0369]
[1720844356010,31.63,139.02,138.96,33.5697]
[1720844356212,36.6653,139.02,138.98,5.0366]
[1720844358925,36.6653,139.02,138.99,5.0363]
[1720844359130,31.63,139.02,138.99,5.0363]
[1720844360732,36.6652,139.02,138.98,5.0365]
[1720844365236,36.6652,139.02,138.99,5.0363]
[1720844367519,36.6652,139.02,138.93,6.0074]
[1720844367848,36.6652,139.02,138.98,5.0366]
[1720844367849,31.63,139.02,138.98,5.0366]
[1720844368013,36.6653,139.02,138.98,5.0366]
[1720844369940,20.0,139.02,138.99,5.0362]
[1720844373031,20.0,139.02,138.99,11.63]
[1720844373222,20.0,139.03,139.0,5.0358]
[1720844374645,25.0348,139.03,139.0,5.0358]
[1720844375035,20.0,139.03,139.0,5.0358]
[1720844376044,25.0349,139.03,139.0,5.0358]
[1720844376447,20.0,139.03,139.01,5.0355]
[1720844376826,20.0,139.03,139.0,5.0358]
[1720844379556,25.0349,139.03,138.97,15.9851]
[1720844379861,36.6649,139.03,138.99,5.0362]
[1720844381144,5.0354,139.02,138.93,21.9925]
[1720844381445,20.0,139.01,138.98,16.6665]
[1720844381742,20.0,139.01,138.99,5.0362]
[1720844381944,20.0,139.02,138.99,5.0362]
[1720844382128,20.0,139.02,138.99,16.6662]
[1720844385052,21.63,139.05,139.01,5.0356]
[1720844385053,16.6643,139.05,139.01,5.0356]
[1720844385551,5.0345,139.04,139.0,16.6658]
[1720844385747,5.0345,139.04,139.0,5.0358]
[1720844386129,20.0,139.03,139.0,5.0358]
[1720844388231,20.0,139.03,139.01,5.0355]
[1720844389934,20.0,139.03,138.99,11.63]
[1720844389935,25.0348,139.03,138.99,5.0362]
[1720844390155,36.6648,139.03,138.99,5.0362]
[1720844391857,36.6648,139.03,139.0,5.0359]
[1720844392363,31.63,139.03,139.0,5.0359]
[1720844397363,31.63,139.03,139.01,5.0356]
[1720844398843,20.0,139.03,139.01,5.0356]
[1720844404362,20.0,139.03,139.0,5.0358]
[1720844410668,26.6286,139.03,139.0,5.0358]
[1720844412169,38.2586,139.03,139.0,5.0358]
[1720844412464,11.63,139.02,138.93,21.9925]
[1720844412661,20.0,139.01,138.98,5.0363]
[1720844415675,36.6656,139.01,138.98,5.0363]
[1720844418586,31.63,139.01,138.98,5.0363]
[1720844420078,36.6656,139.01,138.98,5.0363]
[1720844420251,46.6656,139.01,138.97,5.0368]
[1720844420879,5.036,139.0,138.96,5.0372]
[1720844421255,20.0,138.99,138.96,5.0372]
[1720844427986,25.0363,138.99,138.96,5.0372]
[1720844429487,25.0363,138.99,138.95,5.0376]
[1720844433094,36.6663,138.99,138.95,5.0376]
[1720844436106,25.0363,138.99,138.95,16.6676]
[1720844437607,25.0363,138.99,138.95,5.0376]
[1720844437916,5.0366,138.98,138.95,5.0376]
[1720844438078,20.0,138.97,138.95,5.0376]
[1720844438608,20.0,138.97,138.94,16.668]
[1720844438785,20.0,138.97,138.94,5.038]
[1720844439112,20.0,138.97,138.94,16.668]
[1720844439989,20.0,138.97,138.94,5.038]
[1720844440190,20.0,138.97,138.94,16.668]
[1720844440899,20.0,138.97,138.94,5.038]
[1720844442498,25.037,138.97,138.94,5.038]
[1720844442996,20.0,138.97,138.94,5.038]
[1720844450810,20.0,138.97,138.94,4.038]
[1720844465323,20.0,138.97,138.95,5.0377]
[1720844465529,20.0,138.98,138.95,5.0377]
[1720844466427,20.0,138.98,138.94,5.0379]
[1720844466725,20.0,138.98,138.94,16.6679]
[1720844470231,20.0,138.98,138.94,5.0379]
[1720844472911,20.0,138.98,138.93,16.6683]
[1720844475134,20.0,138.98,138.94,5.0381]
[1720844476635,20.0,138.98,138.94,1.43872495]
[1720844476819,20.0,138.98,138.96,16.6672]
[1720844477026,20.0,138.99,138.96,16.6672]
[1720844478031,20.0,138.99,138.96,11.63]
[1720844478219,20.0,138.99,138.95,6.47671116]
[1720844478536,20.0,138.99,138.96,11.63]
[1720844479943,20.0,138.99,138.96,13.06900759]
[1720844481328,20.0,138.99,138.94,50.038]
[1720844481623,20.0,138.99,138.95,11.63]
[1720844482035,20.0,138.99,138.94,61.668]
[1720844484744,20.0,138.99,138.94,50.038]
[1720844484925,20.0,138.99,138.95,11.63]
[1720844485241,5.0369,138.98,138.95,11.63]
[1720844488045,5.0369,138.98,138.95,16.6677]
[1720844493849,25.0364,138.99,138.95,16.6677]
[1720844496451,25.0364,138.99,138.95,5.0377]
[1720844496633,25.0364,138.99,138.95,16.6677]
[1720844496829,25.0364,138.99,138.94,16.668]
[1720844496830,5.0367,138.98,138.94,16.668]
[1720844497857,5.0367,138.98,138.95,5.0377]
[1720844499946,25.0364,138.99,138.95,5.0377]
[1720844500348,6.4582,138.98,138.95,5.0377]
[1720844509983,6.4582,138.98,138.95,5.0377]
[1720844522884,20.0,138.99,138.96,5.0373]
[1720844524003,25.0363,138.99,138.95,16.6676]
[1720844525870,25.0363,138.99,138.95,5.0376]
[1720844526991,5.0367,138.98,138.95,5.0376]
[1720844528495,5.0367,138.98,138.94,5.038]
[1720844528691,5.037,138.97,138.93,5.0383]
[1720844528897,5.037,138.97,138.93,16.6683]
[1720844529902,5.037,138.97,138.94,11.63]
[1720844530203,5.037,138.97,138.93,16.6683]
[1720844530499,5.037,138.97,138.94,11.63]
[1720844530800,5.037,138.97,138.93,16.6683]
[1720844534901,5.037,138.97,138.94,5.0381]
[1720844545911,5.037,138.97,138.93,16.6682]
[1720844549307,5.0382,138.94,138.92,0.04265352]
[1720844549905,5.0385,138.93,138.92,0.04265352]
[1720844550315,16.6685,138.93,138.92,0.04265352]
[1720844552901,36.6685,138.93,138.92,0.04265352]
[1720844555198,5.0394,138.91,138.85,0.871859]
[1720844555517,36.6696,138.9,138.86,5.0409]
[1720844555898,11.63,138.89,138.86,5.0409]
[1720844556816,16.67,138.89,138.85,5.913059]
[1720844563800,11.63,138.88,138.85,5.913059]
[1720844569128,16.6703,138.88,138.85,5.913059]
[1720844570722,11.63,138.88,138.85,5.913059]
[1720844580417,11.63,138.88,138.86,5.041]
[1720844582826,11.63,138.88,138.85,5.913159]
[1720844583724,11.63,138.87,138.85,0.871859]
[1720844583924,16.6707,138.87,138.85,0.871859]
[1720844585932,5.041,138.86,138.85,0.871859]
[1720844587829,16.671,138.86,138.85,0.871859]
[1720844589633,22.7029,138.86,138.85,0.871859]
[1720844589817,42.7029,138.86,138.85,0.871859]
[1720844590935,59.1308,138.86,138.85,0.871859]
[1720844591246,71.7334,138.86,138.85,0.871859]
[1720844592020,60.1034,138.86,138.85,0.871859]
[1720844592248,59.1308,138.86,138.85,0.871859]
[1720844592557,47.5008,138.86,138.85,0.871859]
[1720844592875,59.1308,138.86,138.85,0.871859]
[1720844594835,36.671,138.86,138.85,0.871859]
[1720844595043,25.041,138.86,138.85,0.871859]
[1720844596926,20.0,138.86,138.85,0.871859]
[1720844597135,25.041,138.86,138.85,0.871859]
[1720844598432,5.041,138.86,138.85,0.871859]
[1720844598834,25.041,138.86,138.85,0.871859]
[1720844603346,36.671,138.86,138.85,0.871859]
[1720844603927,36.671,138.86,138.8,16.1838]
[1720844603928,5.0418,138.84,138.8,5.0431]
[1720844604141,20.0,138.83,138.8,5.0431]
[1720844604845,20.0,138.84,138.8,5.0431]
[1720844605036,25.042,138.84,138.8,16.6731]
[1720844606155,25.042,138.84,138.81,11.63]
[1720844609259,5.0421,138.83,138.81,11.63]
[1720844613456,5.0421,138.83,138.79,20.6819]
[1720844613646,5.0421,138.83,138.8,11.63]
[1720844614558,5.0421,138.83,138.79,32.3119]
[1720844614759,5.0425,138.82,138.79,32.3119]
[1720844615659,5.0425,138.82,138.79,27.2685]
[1720844617661,5.0425,138.82,138.79,32.312]
[1720844619559,5.0423,138.83,138.79,32.312]
[1720844621339,5.0423,138.83,138.8,5.0431]
[1720844628384,36.6719,138.84,138.8,5.0431]
[1720844632047,20.0,138.84,138.76,21.8492]
[1720844632242,5.0414,138.85,138.82,5.0422]
[1720844632566,20.0,138.84,138.81,16.6727]
[1720844632970,20.0,138.84,138.81,5.0427]
[1720844634962,25.0418,138.84,138.81,5.0427]
[1720844635660,25.0418,138.84,138.8,16.673]
[1720844638376,5.0421,138.83,138.8,16.673]
[1720844638958,5.0421,138.83,138.81,11.63]
[1720844639348,11.63,138.82,138.72,15.9595]
[1720844639553,44.8053,138.83,138.72,15.9595]
[1720844639554,5.0442,138.78,138.73,5.0456]
[1720844639776,5.0443,138.78,138.73,5.0456]
[1720844640077,5.044,138.78,138.74,11.63]
[1720844640372,5.0436,138.79,138.76,11.63]
[1720844640955,5.0436,138.79,138.74,5.0452]
[1720844641161,5.0436,138.79,138.75,11.63]
[1720844642076,5.0436,138.79,138.75,16.675]
[1720844645984,5.0436,138.79,138.75,29.2875]
[1720844648090,5.0436,138.79,138.75,17.6575]
[1720844648395,5.0436,138.79,138.75,29.2875]
[1720844648559,20.0,138.78,138.75,29.2875]
[1720844651366,20.0,138.78,138.75,17.6575]
[1720844651566,25.044,138.78,138.75,12.6125]
[1720844651968,36.674,138.78,138.75,12.6125]
[1720844653190,36.674,138.78,138.73,5.0456]
[1720844653191,5.0444,138.77,138.73,5.0456]
[1720844653590,5.0444,138.77,138.73,16.6756]
[1720844654774,5.0444,138.77,138.73,5.0456]
[1720844654969,5.0446,138.76,138.73,5.0456]
[1720844655174,5.0446,138.76,138.73,16.6756]
[1720844656298,21.7494,138.75,138.71,0.871859]
[1720844656508,21.7494,138.75,138.57,0.871859]
[1720844656509,10.0,138.66,138.57,0.871859]
[1720844656689,22.6218,138.65,138.6,11.63]
[1720844656872,22.6218,138.65,138.57,0.871859]
[1720844656873,15.1187,138.72,138.64,11.63]
[1720844657074,20.0,138.71,138.59,16.6113]
[1720844657273,30.0,138.74,138.59,16.6113]
[1720844657274,5.049,138.64,138.59,16.6113]
[1720844657588,11.63,138.68,138.59,16.6113]
[1720844657781,11.63,138.67,138.62,11.13]
[1720844657969,20.0,138.66,138.62,11.13]
[1720844658171,20.0,138.66,138.59,16.6113]
[1720844658377,25.0483,138.66,138.63,11.63]
[1720844658801,20.0,138.66,138.59,16.6113]
[1720844658997,5.0491,138.64,138.62,11.63]
[1720844659210,20.0,138.66,138.59,16.6113]
[1720844659385,11.63,138.66,138.61,11.63]
[1720844659698,20.0,138.65,138.61,11.63]
[1720844660074,5.0493,138.64,138.61,11.63]
[1720844660997,5.0494,138.63,138.61,11.63]
[1720844661181,5.0494,138.63,138.6,11.63]
[1720844662075,5.0498,138.62,138.59,28.2413]
[1720844662275,11.63,138.64,138.59,16.6113]
[1720844662495,20.0,138.63,138.59,16.6113]
[1720844662803,5.0496,138.63,138.6,45.0]
[1720844662997,20.0,138.65,138.59,28.2413]
[1720844663299,31.63,138.65,138.6,56.63]
[1720844663485,5.0493,138.64,138.6,56.63]
[1720844663684,20.0,138.63,138.6,56.63]
[1720844665398,25.0495,138.63,138.6,56.63]
[1720844665788,5.05,138.62,138.6,45.0]
[1720844665988,25.0495,138.63,138.6,45.0]
[1720844667485,5.0498,138.62,138.6,45.0]
[1720844668001,25.0495,138.63,138.6,45.0]
[1720844669280,5.0499,138.62,138.6,45.0]
[1720844669801,25.0495,138.63,138.6,45.0]
[1720844671378,20.0,138.63,138.6,56.63]
[1720844671588,12.6202,138.67,138.6,45.0]
[1720844671791,24.2502,138.67,138.61,11.63]
[1720844672505,24.2502,138.67,138.62,1.44254281]
[1720844672693,11.63,138.66,138.62,1.44254281]
[1720844673096,20.0,138.65,138.62,1.44254281]
[1720844673295,25.0489,138.65,138.62,1.44254281]
[1720844673996,5.0489,138.65,138.62,1.44254281]
[1720844674187,5.0489,138.65,138.62,46.44254281]
[1720844675503,5.049,138.64,138.62,46.44254281]
[1720844675704,5.049,138.64,138.62,1.44254281]
[1720844675904,5.049,138.64,138.61,45.0]
[1720844676303,5.049,138.64,138.6,45.0]
[1720844676799,5.0487,138.65,138.6,45.0]
[1720844677001,5.0487,138.65,138.6,56.63]
[1720844678391,5.0487,138.65,138.6,45.0]
[1720844681612,5.049,138.64,138.6,45.0]
[1720844681811,11.63,138.65,138.6,45.0]
[1720844682112,31.63,138.64,138.6,45.0]
[1720844682612,5.0498,138.62,138.6,45.0]
[1720844683513,5.0498,138.62,138.59,16.6113]
[1720844683810,5.0502,138.61,138.59,16.6113]
[1720844684313,5.0499,138.62,138.59,16.6113]
[1720844686917,5.0501,138.61,138.58,6.6199]
[1720844687617,5.0501,138.61,138.57,12.501859]
[1720844687819,5.0501,138.61,138.58,45.0]
[1720844688032,5.0499,138.62,138.58,45.0]
[1720844688609,20.0,138.61,138.57,0.871859]
[1720844688805,5.0506,138.6,138.57,0.871859]
[1720844690010,5.0506,138.6,138.57,45.871859]
[1720844690210,5.0506,138.6,138.57,0.871859]
[1720844691117,5.0506,138.6,138.58,0.94307006]
[1720844692495,5.0506,138.6,138.57,0.871859]
[1720844693030,5.0506,138.6,138.58,0.94307011]
[1720844694031,5.0506,138.6,138.57,0.871859]
[1720844695413,5.0506,138.6,138.58,1.28800877]
[1720844695722,20.0,138.61,138.58,1.28800877]
[1720844696030,5.0501,138.61,138.58,12.91800877]
[1720844696209,5.0501,138.61,138.59,45.0]
[1720844696414,5.0501,138.61,138.6,1.44285197]
[1720844696724,25.0501,138.61,138.58,1.44285308]
[1720844696913,5.0501,138.61,138.58,46.44285308]
[1720844697619,5.0507,138.6,138.58,45.0]
[1720844697820,5.0507,138.6,138.57,0.871859]
[1720844698006,5.0507,138.6,138.57,45.871859]
[1720844699619,5.0502,138.61,138.57,57.501859]
[1720844700334,5.0509,138.59,138.57,0.871859]
[1720844700632,5.0506,138.6,138.57,0.871859]
[1720844700923,5.0503,138.61,138.57,12.501859]
[1720844701127,5.0503,138.61,138.57,0.871859]
[1720844701505,5.0503,138.61,138.58,1.44190429]
[1720844701912,5.0505,138.6,138.58,1.44190429]
[1720844702505,5.0505,138.6,138.57,45.871859]
[1720844703205,5.0508,138.59,138.57,45.871859]
[1720844703405,11.63,138.62,138.57,0.871859]
[1720844703617,5.0506,138.6,138.57,0.871859]
[1720844704109,5.0506,138.6,138.57,2.31486371]
[1720844705546,5.0506,138.6,138.57,0.871859]
[1720844706237,5.0506,138.6,138.58,1.31164532]
[1720844706614,5.0506,138.6,138.57,0.871859]
[1720844709007,5.0502,138.61,138.57,0.871859]
[1720844709435,5.0502,138.61,138.58,1.0404183]
[1720844709636,5.0502,138.61,138.57,0.871859]
[1720844714129,5.0499,138.62,138.57,0.871859]
[1720844714434,20.0,138.61,138.57,0.871859]
[1720844714636,20.0,138.61,138.58,1.39465831]
[1720844715121,25.0501,138.61,138.58,1.39465831]
[1720844716011,25.0501,138.61,138.57,12.501859]
[1720844718328,25.0501,138.61,138.57,0.871859]
[1720844718509,25.0501,138.61,138.57,12.501859]
[1720844718715,5.0505,138.6,138.57,12.501859]
[1720844718919,5.0505,138.6,138.57,0.871859]
[1720844720918,25.0502,138.61,138.57,0.871859]
[1720844726340,31.63,138.61,138.57,0.871859]
[1720844726717,11.63,138.6,138.57,0.871859]
[1720844726918,20.0,138.59,138.57,0.871859]
[1720844727330,25.0508,138.59,138.57,0.871859]
[1720844728331,5.0512,138.58,138.57,0.871859]
[1720844728638,25.0512,138.58,138.57,0.871859]
[1720844732954,20.0,138.58,138.57,0.871859]
[1720844736346,5.0506,138.6,138.57,0.871859]
[1720844736851,5.0509,138.59,138.57,0.871859]
[1720844737053,5.0506,138.6,138.57,0.871859]
[1720844740947,5.0502,138.61,138.57,12.501859]
[1720844741135,20.0,138.6,138.57,0.871859]
[1720844741336,20.0,138.6,138.57,12.501859]
[1720844742159,25.0506,138.6,138.57,12.501859]
[1720844742357,25.0506,138.6,138.57,0.871859]
[1720844744237,20.0,138.6,138.57,0.871859]
[1720844744443,25.0505,138.6,138.57,0.871859]
[1720844745754,20.0,138.6,138.57,0.871859]
[1720844746251,20.0,138.6,138.57,12.501859]
[1720844746658,25.0505,138.6,138.57,12.501859]
[1720844747653,20.0,138.6,138.57,12.501859]
[1720844747842,16.6797,138.63,138.58,56.63]
[1720844748037,25.0497,138.62,138.58,11.63]
[1720844750439,25.0497,138.62,138.59,1.44274369]
[1720844750843,25.0497,138.62,138.59,13.07274369]
[1720844752662,25.0497,138.62,138.59,11.63]
[1720844752964,25.0497,138.62,138.58,11.63]
[1720844753162,25.0497,138.62,138.59,45.0]
[1720844754761,20.0,138.62,138.59,56.63]
[1720844754962,20.0,138.62,138.6,1.44279263]
[1720844756666,25.0497,138.62,138.6,1.44279263]
[1720844757464,5.0497,138.62,138.6,1.44279263]
[1720844757987,5.0495,138.63,138.6,1.44279263]
[1720844758267,25.0498,138.62,138.6,1.44279263]
[1720844760353,5.0491,138.64,138.61,1.44268853]
[1720844760543,41.3092,138.7,138.63,11.63]
[1720844760544,16.0733,138.7,138.63,11.63]
[1720844760751,12.6168,138.71,138.64,13.07233121]
[1720844761047,12.6168,138.71,138.65,1.44227691]
[1720844761048,11.63,138.69,138.65,1.44227691]
[1720844761464,5.0478,138.68,138.65,1.44227691]
[1720844761858,5.0478,138.68,138.64,11.63]
[1720844761859,5.0479,138.67,138.63,11.63]
[1720844762059,5.0479,138.67,138.64,45.0]
[1720844762553,5.0484,138.66,138.62,16.0446]
[1720844762763,5.0484,138.66,138.62,27.6746]
[1720844763462,16.678,138.67,138.63,45.0]
[1720844763662,5.048,138.67,138.63,56.63]
[1720844765446,16.6777,138.68,138.63,56.63]
[1720844765653,20.0,138.67,138.63,56.63]
[1720844767258,20.0,138.67,138.64,11.63]
[1720844767462,20.0,138.68,138.65,12.76551514]
[1720844767757,20.0,138.69,138.65,57.76551514]
[1720844767957,20.0,138.69,138.65,12.76551514]
[1720844768666,20.0,138.69,138.66,1.13543353]
[1720844768873,20.0,138.69,138.66,11.63]
[1720844769072,20.0,138.69,138.63,45.0]
[1720844769568,25.0468,138.7,138.66,11.63]
[1720844769759,5.0464,138.72,138.66,11.63]
[1720844769961,11.63,138.72,138.66,11.63]
[1720844770265,5.0465,138.71,138.66,11.63]
[1720844770777,28.7553924,138.77,138.67,15.2496]
[1720844771072,11.63,138.74,138.69,11.63]
[1720844772176,5.0455,138.74,138.69,11.63]
[1720844772388,5.0458,138.73,138.69,11.63]
[1720844772778,5.0455,138.74,138.69,11.63]
[1720844772962,16.6751,138.75,138.7,11.63]
[1720844773283,16.6751,138.75,138.7,56.63]
[1720844773468,16.6751,138.75,138.7,11.63]
[1720844774358,5.0451,138.75,138.7,11.63]
[1720844774771,16.6751,138.75,138.7,11.63]
[1720844775476,20.0,138.74,138.71,1.16262108]
[1720844775682,20.0,138.74,138.7,11.63]
[1720844775886,20.0,138.74,138.71,1.24542956]
[1720844776569,20.0,138.74,138.71,12.87542956]
[1720844776758,20.0,138.74,138.7,11.63]
[1720844776959,20.0,138.74,138.71,1.24525124]
[1720844777375,20.0,138.74,138.71,12.87525124]
[1720844777582,25.045,138.75,138.71,11.63]
[1720844779076,20.0,138.75,138.71,11.63]
[1720844779280,20.0,138.75,138.72,56.63]
[1720844779481,2.88864441,138.79,138.72,56.63]
[1720844779482,16.6746,138.77,138.72,56.63]
[1720844779687,25.0447,138.76,138.72,56.63]
[1720844779981,25.0447,138.76,138.73,1.44148251]
[1720844781567,20.0,138.76,138.74,1.44148298]
[1720844781767,16.6742,138.78,138.74,1.44148298]
[1720844781962,25.0443,138.77,138.74,1.44148298]
[1720844782683,25.0443,138.77,138.73,11.63]
[1720844782912,5.0447,138.76,138.72,71.8796]
[1720844783180,5.0451,138.75,138.72,15.2496]
[1720844784288,5.0447,138.76,138.72,28.32114232]
[1720844784483,36.6744,138.77,138.72,28.32114232]
[1720844784690,25.0444,138.77,138.72,28.32114232]
[1720844785069,25.0444,138.77,138.72,26.8796]
[1720844787175,36.6744,138.77,138.72,26.8796]
[1720844787889,20.0,138.77,138.72,26.8796]
[1720844788105,20.0,138.77,138.73,11.63]
[1720844788391,20.0,138.77,138.72,15.2496]
[1720844788569,20.0,138.77,138.74,11.63]
[1720844790599,25.0443,138.77,138.73,56.63]
[1720844791481,25.0443,138.77,138.73,45.0]
[1720844791688,25.0443,138.77,138.73,56.63]
[1720844792081,5.0446,138.76,138.73,45.0]
[1720844792604,25.0444,138.77,138.73,45.0]
[1720844793400,5.0448,138.76,138.72,15.2496]
[1720844793603,5.0448,138.76,138.72,26.8796]
[1720844793901,16.6748,138.76,138.72,15.2496]
[1720844795291,36.6753,138.75,138.7,6.1398]
[1720844795491,16.6753,138.75,138.7,6.1398]
[1720844795871,16.6753,138.75,138.7,17.7698]
[1720844796484,16.6747,138.76,138.7,17.7698]
[1720844796686,20.0,138.75,138.7,17.7698]
[1720844796885,20.0,138.75,138.71,0.71397592]
[1720844802679,20.0,138.75,138.69,16.2301]
[1720844802680,25.0451,138.75,138.69,16.2301]
[1720844802884,16.6756,138.74,138.69,16.2301]
[1720844803089,20.0,138.73,138.69,16.2301]